bitfinex-derivatives/quotes_BTCF0:USTF0_20250209
["timestamp","ask_amount","ask_price","bid_price","bid_amount"]
[1739100952292,0.00270686,96744.0,96743.0,0.37091226]
[1739100954198,0.00270686,96744.0,96743.0,0.01011226]
[1739100954398,0.00270686,96744.0,96743.0,0.37091226]
[1739100955094,0.00270686,96744.0,96743.0,0.01011226]
[1739100955298,0.00270686,96744.0,96743.0,0.37091226]
[1739100963805,0.00270686,96744.0,96743.0,0.01011226]
[1739100964110,0.00270686,96744.0,96743.0,0.37091226]
[1739100965706,0.00115504,96744.0,96743.0,0.37091226]
[1739100978322,0.00115504,96744.0,96743.0,0.61887058]
[1739100980623,0.00115504,96744.0,96743.0,0.37091226]
[1739100988831,0.00115504,96744.0,96743.0,0.01011226]
[1739100989028,0.00115504,96744.0,96743.0,0.37091226]
[1739100992431,0.00115504,96744.0,96743.0,0.61898772]
[1739100994319,0.3608,96765.0,96743.0,0.61898772]
[1739100994724,0.3608,96765.0,96744.0,0.033]
[1739100995430,0.3688,96765.0,96744.0,0.033]
[1739100995625,0.00015504,96764.0,96745.0,0.00015504]
[1739100997935,0.00415504,96764.0,96745.0,0.00015504]
[1739100998135,0.00415504,96764.0,96750.0,0.3608]
[1739100998733,0.00415504,96764.0,96750.0,0.54685133]
[1739100999543,0.00915504,96764.0,96750.0,0.54685133]
[1739101000328,0.00415504,96764.0,96750.0,0.54785133]
[1739101000529,0.00915504,96764.0,96750.0,0.54785133]
[1739101002338,0.00915504,96764.0,96753.0,0.18605133]
[1739101003428,0.00915504,96764.0,96753.0,0.18705133]
[1739101004740,0.00515504,96764.0,96753.0,0.18705133]
[1739101004943,0.00915504,96764.0,96753.0,0.18705133]
[1739101005241,0.00915504,96764.0,96753.0,0.001]
[1739101021545,0.3608,96762.0,96753.0,0.001]
[1739101022453,0.3608,96762.0,96755.0,0.3608]
[1739101022641,0.3608,96762.0,96756.0,0.0325]
[1739101023544,0.00915504,96764.0,96756.0,0.0325]
[1739101023741,0.00415504,96764.0,96756.0,0.0325]
[1739101023949,0.004,96762.0,96756.0,0.0325]
[1739101024851,0.007,96762.0,96756.0,0.0325]
[1739101025149,0.003,96762.0,96756.0,0.0335]
[1739101026853,0.003,96762.0,96756.0,0.0325]
[1739101027045,0.007,96762.0,96756.0,0.0325]
[1739101029669,0.007,96762.0,96758.0,0.3608]
[1739101030748,0.003,96762.0,96758.0,0.3608]
[1739101030954,0.007,96762.0,96758.0,0.3608]
[1739101037153,0.003,96762.0,96758.0,0.3608]
[1739101037355,0.004,96762.0,96758.0,0.3608]
[1739101037553,0.007,96762.0,96758.0,0.3608]
[1739101037752,0.007,96762.0,96761.0,0.3608]
[1739101039659,0.007,96762.0,96756.0,0.0325]
[1739101040057,0.007,96762.0,96761.0,0.3608]
[1739101040758,0.003,96762.0,96761.0,0.3608]
[1739101040955,0.007,96762.0,96761.0,0.3608]
[1739101041159,0.007,96762.0,96761.0,0.37091226]
[1739101046474,0.007,96762.0,96761.0,0.01011226]
[1739101070985,0.007,96762.0,96759.0,0.01011226]
[1739101071488,0.007,96762.0,96760.0,0.0305]
[1739101072073,0.002,96762.0,96760.0,0.0305]
[1739101072378,0.006,96762.0,96760.0,0.0305]
[1739101072578,0.004,96762.0,96760.0,0.0305]
[1739101072885,0.005,96762.0,96760.0,0.0305]
[1739101074990,0.004,96762.0,96760.0,0.0305]
[1739101075687,0.002,96762.0,96760.0,0.0305]
[1739101075888,0.004,96762.0,96760.0,0.0305]
[1739101076081,0.003,96762.0,96760.0,0.0305]
[1739101078193,0.001,96762.0,96760.0,0.0305]
[1739101078390,0.002,96762.0,96760.0,0.0305]
[1739101079087,0.002,96762.0,96761.0,0.3608]
[1739101081292,0.001,96762.0,96761.0,0.3608]
[1739101081488,0.002,96762.0,96761.0,1.8608]
[1739101081888,0.001,96762.0,96761.0,0.3608]
[1739101082685,0.00015504,96764.0,96761.0,0.3608]
[1739101082686,0.00015504,96764.0,96761.0,0.3618]
[1739101083186,0.00015504,96764.0,96762.0,0.0332]
[1739101083386,0.00015504,96764.0,96762.0,0.394]
[1739101086102,0.00315504,96764.0,96762.0,0.394]
[1739101087794,0.00015504,96764.0,96762.0,0.394]
[1739101088100,0.00015504,96764.0,96763.0,0.06688]
[1739101088297,0.00315504,96764.0,96763.0,0.06688]
[1739101088486,0.00715504,96764.0,96763.0,0.06688]
[1739101089092,0.00315504,96764.0,96763.0,0.06688]
[1739101089292,0.00415504,96764.0,96763.0,0.06688]
[1739101089491,0.00415504,96764.0,96763.0,0.06788]
[1739101089899,0.00015504,96764.0,96763.0,0.06788]
[1739101090099,0.3608,96780.0,96763.0,0.06888]
[1739101090400,0.3608,96780.0,96772.0,0.3608]
[1739101090699,0.3608,96780.0,96773.0,0.0313]
[1739101091495,0.3668,96780.0,96773.0,0.0313]
[1739101092091,0.3668,96780.0,96773.0,0.0323]
[1739101092895,0.3758,96780.0,96773.0,0.0333]
[1739101093804,0.3708,96780.0,96773.0,0.0333]
[1739101093989,0.01,96780.0,96773.0,0.0333]
[1739101094501,0.009,96780.0,96773.0,0.0323]
[1739101095297,0.008,96780.0,96773.0,0.0323]
[1739101095500,0.007,96780.0,96773.0,0.0313]
[1739101096198,0.00015504,96786.0,96774.0,1.5]
[1739101096400,0.00015504,96786.0,96781.0,0.3608]
[1739101096598,0.00015504,96786.0,96782.0,0.13028]
[1739101096903,0.00015504,96786.0,96782.0,0.14039226]
[1739101097203,0.00015504,96786.0,96782.0,0.07351226]
[1739101097399,0.00015504,96786.0,96782.0,0.14035226]
[1739101098199,0.00315504,96786.0,96782.0,0.14035226]
[1739101098507,0.00015504,96786.0,96782.0,0.14035226]
[1739101098806,0.00115504,96786.0,96782.0,0.07351226]
[1739101099107,0.00615504,96786.0,96782.0,0.07351226]
[1739101099701,0.00115504,96786.0,96782.0,0.07351226]
[1739101100502,0.00115504,96786.0,96782.0,0.07451226]
[1739101100718,0.00015504,96786.0,96782.0,0.07451226]
[1739101101203,0.00015504,96786.0,96784.0,0.3608]
[1739101102199,0.00015504,96786.0,96783.0,0.01011226]
[1739101102412,0.00015504,96786.0,96784.0,0.3608]
[1739101103820,0.00015504,96786.0,96784.0,0.3618]
[1739101104199,0.00015504,96786.0,96784.0,0.3608]
[1739101109817,0.00015504,96786.0,96784.0,0.36990202]
[1739101113410,0.00015504,96786.0,96784.0,0.00910202]
[1739101113606,0.00015504,96786.0,96784.0,0.3608]
[1739101123919,0.00015504,96786.0,96784.0,0.54669979]
[1739101126420,0.00015504,96786.0,96784.0,0.3608]
[1739101129621,0.00015504,96786.0,96783.0,0.26762882]
[1739101129822,0.00015504,96786.0,96784.0,0.3608]
[1739101131027,0.00015504,96786.0,96785.0,0.01011226]
[1739101142637,0.00015504,96786.0,96785.0,0.37091226]
[1739101147844,0.11012635,96813.0,96785.0,0.37091226]
[1739101148046,0.11012635,96813.0,96803.0,0.3608]
[1739101148546,0.11012635,96813.0,96804.0,0.0317]
[1739101148939,0.11012635,96813.0,96805.0,0.01011226]
[1739101149139,0.11812635,96813.0,96805.0,0.01011226]
[1739101149339,0.12512635,96813.0,96805.0,0.01011226]
[1739101149743,0.3608,96806.0,96805.0,0.01011226]
[1739101151544,0.3628,96806.0,96805.0,0.01011226]
[1739101152242,0.3638,96806.0,96805.0,0.01011226]
[1739101161256,0.3638,96806.0,96799.0,0.00015496]
[1739101164859,0.3608,96805.0,96799.0,0.00015496]
[1739101165254,0.3608,96805.0,96799.0,0.00115496]
[1739101165462,0.3608,96805.0,96799.0,0.00215496]
[1739101165864,0.3608,96805.0,96799.0,0.00115496]
[1739101166064,0.3678,96805.0,96799.0,0.00215496]
[1739101166868,0.3768,96805.0,96799.0,0.00215496]
[1739101167164,0.3758,96805.0,96799.0,0.00215496]
[1739101167583,0.3668,96805.0,96799.0,0.00115496]
[1739101167766,0.3688,96805.0,96799.0,0.00115496]
[1739101168666,0.3648,96805.0,96799.0,0.00015496]
[1739101172876,0.004,96805.0,96799.0,0.00015496]
[1739101173069,0.3648,96805.0,96799.0,0.00015496]
[1739101174568,0.3628,96805.0,96799.0,0.00015496]
[1739101174765,0.3648,96805.0,96799.0,0.00015496]
[1739101175374,0.3638,96805.0,96799.0,0.00015496]
[1739101176079,0.003,96805.0,96799.0,0.00015496]
[1739101190969,0.003,96805.0,96799.0,0.01026722]
[1739101214498,0.003,96805.0,96799.0,0.19610731]
[1739101218104,0.003,96805.0,96799.0,0.01026722]
[1739101220991,0.003,96805.0,96800.0,0.01011226]
[1739101222403,0.002,96805.0,96800.0,0.01011226]
[1739101222610,0.003,96805.0,96800.0,0.01011226]
[1739101230519,0.004,96805.0,96800.0,0.01011226]
[1739101232324,0.002,96805.0,96800.0,0.01011226]
[1739101232616,0.001,96805.0,96800.0,0.01011226]
[1739101232815,0.002,96805.0,96800.0,0.01011226]
[1739101233622,0.002,96805.0,96801.0,0.18584009]
[1739101233824,0.002,96805.0,96802.0,0.0624]
[1739101234221,0.002,96805.0,96803.0,0.031]
[1739101235925,0.001,96805.0,96803.0,0.031]
[1739101236126,0.002,96805.0,96803.0,0.031]
[1739101238629,0.002,96805.0,96803.0,0.04071533]
[1739101240131,0.002,96805.0,96803.0,0.031]
[1739101242824,0.002,96805.0,96800.0,0.01011226]
[1739101243329,0.001,96805.0,96800.0,0.01011226]
[1739101243530,0.002,96805.0,96800.0,0.01011226]
[1739101243930,0.001,96805.0,96800.0,0.01011226]
[1739101244228,0.002,96805.0,96800.0,0.01011226]
[1739101245622,0.003,96805.0,96800.0,0.01011226]
[1739101246622,0.3608,96801.0,96800.0,0.01011226]
[1739101248040,0.3608,96801.0,96800.0,0.01111226]
[1739101249737,0.3608,96801.0,96800.0,0.01011226]
[1739101250135,0.3608,96806.0,96800.0,0.01011226]
[1739101251037,0.3608,96806.0,96799.0,0.00015496]
[1739101251229,0.3628,96806.0,96799.0,0.00015496]
[1739101252439,0.3648,96806.0,96799.0,0.00015496]
[1739101252840,0.3628,96806.0,96799.0,0.00015496]
[1739101253049,0.3648,96806.0,96799.0,0.00015496]
[1739101258243,0.3628,96806.0,96799.0,0.00015496]
[1739101258446,0.3608,96800.0,96799.0,0.00015496]
[1739101258647,0.004,96806.0,96799.0,0.00015496]
[1739101258845,0.3608,96800.0,96799.0,0.00015496]
[1739101260341,0.3608,96800.0,96799.0,0.00115496]
[1739101263656,0.0332,96810.0,96799.0,0.00115496]
[1739101263945,0.3608,96800.0,96799.0,0.00115496]
[1739101264843,0.3608,96800.0,96799.0,0.00015496]
[1739101265949,0.0402,96810.0,96799.0,0.00015496]
[1739101266152,0.3608,96800.0,96799.0,0.00015496]
[1739101266450,0.3608,96800.0,96799.0,0.00115496]
[1739101266945,0.0332,96810.0,96799.0,0.00115496]
[1739101267151,0.3608,96800.0,96799.0,0.00015496]
[1739101267845,0.3608,96800.0,96799.0,0.00115496]
[1739101276756,0.0332,96810.0,96799.0,0.00115496]
[1739101276962,0.3608,96800.0,96799.0,0.00115496]
[1739101279366,0.3608,96800.0,96799.0,0.00015496]
[1739101280277,0.3608,96800.0,96799.0,0.00115496]
[1739101288472,0.581,96800.0,96775.0,0.01011226]
[1739101288666,0.3608,96778.0,96777.0,0.0326]
[1739101289176,0.3608,96778.0,96777.0,0.21844009]
[1739101290176,0.3608,96778.0,96777.0,0.21944009]
[1739101290772,0.3608,96778.0,96777.0,0.22144009]
[1739101292499,0.00015496,96787.0,96777.0,0.22144009]
[1739101292679,0.3608,96778.0,96777.0,0.22144009]
[1739101293476,0.3608,96778.0,96777.0,0.21944009]
[1739101293679,0.3608,96778.0,96777.0,0.0346]
[1739101298380,0.00015496,96787.0,96777.0,0.0346]
[1739101298686,0.3608,96778.0,96777.0,0.0346]
[1739101299570,0.3608,96778.0,96777.0,0.0326]
[1739101299886,0.3608,96778.0,96777.0,0.0346]
[1739101300386,0.00015496,96787.0,96777.0,0.0336]
[1739101300674,0.3608,96778.0,96777.0,0.0346]
[1739101303384,0.00015496,96787.0,96777.0,0.0346]
[1739101303691,0.3608,96778.0,96777.0,0.0346]
[1739101304883,0.3608,96778.0,96777.0,0.0336]
[1739101305086,0.3608,96778.0,96777.0,0.0346]
[1739101314193,0.00015496,96787.0,96777.0,0.0346]
[1739101314696,0.3608,96778.0,96777.0,0.0346]
[1739101315399,0.3608,96778.0,96777.0,0.0336]
[1739101315693,0.3608,96778.0,96777.0,0.0346]
[1739101316189,0.3608,96778.0,96777.0,0.0336]
[1739101316390,0.3608,96778.0,96777.0,0.0346]
[1739101317685,0.3608,96778.0,96777.0,0.0336]
[1739101317880,0.3638,96778.0,96777.0,0.0326]
[1739101318488,0.3618,96778.0,96777.0,0.0326]
[1739101318688,0.3638,96778.0,96777.0,0.0326]
[1739101328500,0.3628,96778.0,96777.0,0.0326]
[1739101328708,0.3638,96778.0,96777.0,0.0326]
[1739101329101,0.3608,96778.0,96777.0,0.0326]
[1739101329297,0.3618,96778.0,96777.0,0.0326]
[1739101330697,0.3608,96778.0,96777.0,0.0326]
[1739101334312,0.00015496,96787.0,96777.0,0.0326]
[1739101334812,0.3608,96778.0,96777.0,0.0326]
[1739101341113,0.3608,96778.0,96777.0,0.04064105]
[1739101342114,0.00015496,96787.0,96777.0,0.04064105]
[1739101343418,0.00415496,96787.0,96777.0,0.04064105]
[1739101344112,0.00015496,96787.0,96778.0,0.18584009]
[1739101344314,0.00715496,96787.0,96778.0,0.18584009]
[1739101344716,0.00415496,96787.0,96778.0,0.18584009]
[1739101344915,0.00615496,96787.0,96778.0,0.18584009]
[1739101345320,0.00415496,96787.0,96778.0,0.18584009]
[1739101345515,0.00615496,96787.0,96778.0,0.18584009]
[1739101346017,0.00515496,96787.0,96778.0,0.18584009]
[1739101346718,0.00215496,96787.0,96778.0,0.18584009]
[1739101346908,0.00515496,96787.0,96778.0,0.18584009]
[1739101347816,0.00515496,96787.0,96777.0,0.04064105]
[1739101360118,0.3608,96781.0,96777.0,0.04064105]
[1739101360719,0.3608,96781.0,96777.0,0.01011226]
[1739101363021,0.3628,96781.0,96777.0,0.01011226]
[1739101363627,0.3608,96781.0,96777.0,0.01011226]
[1739101363827,0.3628,96781.0,96777.0,0.01011226]
[1739101364227,0.3638,96781.0,96777.0,0.01011226]
[1739101364719,0.3628,96781.0,96777.0,0.01011226]
[1739101365014,0.3638,96781.0,96777.0,0.01011226]
[1739101368027,0.3638,96781.0,96777.0,0.0084065]
[1739101371131,0.3638,96781.0,96769.0,0.18584009]
[1739101371430,0.3608,96770.0,96764.0,0.0084065]
[1739101373229,0.06664,96769.0,96768.0,0.00415496]
[1739101373441,0.12844,96769.0,96768.0,0.00415496]
[1739101373639,0.15504,96769.0,96768.0,0.00415496]
[1739101374028,0.45504,96769.0,96761.0,0.04719074]
[1739101374336,0.3608,96762.0,96756.0,0.18565918]
[1739101374532,0.3608,96757.0,96756.0,0.18565918]
[1739101374831,0.3978,96757.0,96756.0,0.10592818]
[1739101375034,0.3978,96757.0,96748.0,0.24773415]
[1739101375235,0.3608,96749.0,96748.0,0.14773415]
[1739101375431,0.42744,96749.0,96748.0,0.14773415]
[1739101375636,0.72744,96749.0,96748.0,0.14773415]
[1739101376234,0.72744,96749.0,96748.0,0.08746232]
[1739101376835,0.72944,96749.0,96748.0,0.08746232]
[1739101378732,0.42944,96749.0,96738.0,0.27049732]
[1739101378934,0.3608,96739.0,96738.0,0.27049732]
[1739101379131,0.581,96739.0,96738.0,0.27049732]
[1739101379635,0.581,96739.0,96722.0,0.0311]
[1739101379835,0.3608,96723.0,96722.0,0.0311]
[1739101380051,0.42744,96723.0,96722.0,0.0311]
[1739101380736,0.3608,96723.0,96722.0,0.0311]
[1739101380935,0.42744,96723.0,96722.0,0.0321]
[1739101382030,0.42744,96723.0,96722.0,0.0331]
[1739101383644,0.57379603,96723.0,96722.0,0.0331]
[1739101386238,0.57379603,96723.0,96722.0,0.0637]
[1739101387442,0.57379603,96723.0,96719.0,0.01036001]
[1739101388940,0.57379603,96723.0,96699.0,0.34901882]
[1739101389240,0.57379603,96723.0,96719.0,0.001]
[1739101389638,0.57379603,96723.0,96719.0,0.002]
[1739101390036,0.57379603,96723.0,96719.0,0.001]
[1739101390229,0.57479603,96723.0,96719.0,0.001]
[1739101390643,0.42744,96723.0,96720.0,0.0961]
[1739101391042,0.3608,96723.0,96720.0,0.0961]
[1739101391238,0.06664,96722.0,96720.0,0.0961]
[1739101391835,0.06664,96722.0,96692.0,0.00983562]
[1739101392039,0.3608,96706.0,96682.0,0.2179]
[1739101393038,0.3608,96706.0,96692.0,0.005]
[1739101393540,0.3618,96706.0,96691.0,0.3658]
[1739101394145,0.3618,96706.0,96692.0,0.005]
[1739101394637,0.3628,96706.0,96692.0,0.005]
[1739101395039,0.3628,96706.0,96693.0,0.0931]
[1739101395240,0.3618,96706.0,96693.0,0.0931]
[1739101395439,0.3628,96706.0,96693.0,0.0931]
[1739101395651,0.001,96706.0,96704.0,0.3608]
[1739101395947,0.002,96706.0,96704.0,0.3608]
[1739101396845,0.05028195,96721.0,96704.0,0.6608]
[1739101397036,0.05028195,96721.0,96704.0,0.3638]
[1739101397236,0.05028195,96705.0,96704.0,0.003]
[1739101397546,0.05028195,96705.0,96704.0,0.3638]
[1739101397751,0.05028195,96705.0,96704.0,0.6638]
[1739101398153,0.05028195,96705.0,96704.0,0.5086343]
[1739101398651,0.05128195,96705.0,96704.0,0.5136343]
[1739101398852,0.05128195,96705.0,96704.0,0.5146343]
[1739101399751,0.05128195,96705.0,96704.0,0.2146343]
[1739101400252,0.05128195,96705.0,96704.0,0.006]
[1739101400452,0.05128195,96705.0,96704.0,0.005]
[1739101400646,0.05128195,96705.0,96704.0,0.006]
[1739101400847,0.05028195,96705.0,96704.0,0.001]
[1739101401052,0.05128195,96705.0,96704.0,0.005]
[1739101402341,0.1820101,96705.0,96704.0,0.06664]
[1739101403753,0.05128195,96705.0,96704.0,0.06664]
[1739101404146,0.05128195,96705.0,96704.0,0.42744]
[1739101404353,0.05128195,96705.0,96704.0,0.06664]
[1739101404564,0.05128195,96705.0,96704.0,0.42744]
[1739101405250,0.05128195,96705.0,96704.0,0.42844]
[1739101406849,0.44249097,96705.0,96704.0,0.42844]
[1739101409658,0.05128195,96705.0,96704.0,0.42844]
[1739101411956,0.23229205,96705.0,96704.0,0.42844]
[1739101414565,0.001,96705.0,96704.0,0.42844]
[1739101415347,0.001,96705.0,96704.0,0.3618]
[1739101415562,0.001,96705.0,96704.0,0.001]
[1739101416854,0.24602221,96710.0,96704.0,0.001]
[1739101417152,0.45194895,96705.0,96704.0,0.001]
[1739101418266,0.45094895,96705.0,96704.0,0.001]
[1739101418462,0.45094895,96705.0,96697.0,0.06664]
[1739101418668,0.45094895,96705.0,96704.0,0.002]
[1739101419067,0.45094895,96705.0,96697.0,0.06664]
[1739101419264,0.45094895,96705.0,96704.0,0.001]
[1739101419677,0.45094895,96705.0,96697.0,0.06664]
[1739101419856,0.45194895,96705.0,96704.0,0.001]
[1739101420069,0.001,96705.0,96704.0,0.001]
[1739101420558,0.24602221,96706.0,96704.0,0.001]
[1739101421961,0.24602221,96706.0,96695.0,0.00015505]
[1739101422266,0.3608,96698.0,96695.0,0.00015505]
[1739101423267,0.3608,96698.0,96679.0,0.2179]
[1739101423469,0.3608,96698.0,96695.0,0.001]
[1739101424272,0.45107843,96697.0,96695.0,0.001]
[1739101425154,0.45107843,96697.0,96679.0,0.00988799]
[1739101425359,0.45107843,96697.0,96678.0,0.13282]
[1739101425563,0.45207843,96697.0,96678.0,0.13282]
[1739101425770,0.45207843,96697.0,96695.0,0.001]
[1739101427270,0.45307843,96697.0,96679.0,1.5]
[1739101428768,0.18512824,96682.0,96679.0,1.5]
[1739101429675,0.18512824,96682.0,96679.0,1.507]
[1739101430066,0.18512824,96682.0,96679.0,1.5]
[1739101430259,0.18712824,96682.0,96679.0,1.507]
[1739101430873,0.18712824,96682.0,96679.0,0.007]
[1739101432078,0.05041143,96681.0,96679.0,0.007]
[1739101433175,0.05041143,96681.0,96678.0,1.6434075]
[1739101433473,0.05241143,96681.0,96679.0,0.007]
[1739101434680,0.05041143,96680.0,96679.0,0.007]
[1739101435073,0.05041143,96680.0,96678.0,0.1427675]
[1739101435374,0.05041143,96680.0,96678.0,0.1497675]
[1739101435672,0.05041143,96680.0,96678.0,0.1427675]
[1739101435873,0.05141143,96680.0,96679.0,0.007]
[1739101436281,0.05141143,96680.0,96678.0,0.1497675]
[1739101436886,0.05241143,96680.0,96678.0,0.1497675]
[1739101438874,0.05141143,96680.0,96678.0,0.1427675]
[1739101439178,0.05241143,96680.0,96678.0,0.1487675]
[1739101439982,0.05041143,96679.0,96678.0,0.1487675]
[1739101441389,0.05041143,96679.0,96678.0,0.1427675]
[1739101441575,0.05041143,96679.0,96678.0,0.1487675]
[1739101441975,0.05041143,96679.0,96678.0,0.1427675]
[1739101442279,0.05041143,96679.0,96678.0,0.1477675]
[1739101443074,0.05141143,96679.0,96678.0,0.1427675]
[1739101443270,0.05141143,96679.0,96678.0,0.1477675]
[1739101443667,0.05041143,96679.0,96678.0,0.1477675]
[1739101443881,0.05141143,96679.0,96678.0,0.1477675]
[1739101444084,0.05141143,96679.0,96678.0,0.13782]
[1739101445186,0.05141143,96679.0,96678.0,0.13282]
[1739101445384,0.05141143,96679.0,96678.0,0.13682]
[1739101445781,0.05141143,96679.0,96678.0,0.13282]
[1739101445985,0.05141143,96679.0,96678.0,0.13682]
[1739101446181,0.05141143,96679.0,96677.0,0.3608]
[1739101446182,0.05141143,96679.0,96677.0,0.3424285]
[1739101446986,0.24034212,96679.0,96677.0,0.3424285]
[1739101447379,0.23934212,96679.0,96677.0,0.3424285]
[1739101447584,0.24034212,96679.0,96677.0,0.3424285]
[1739101447787,0.24034212,96679.0,96678.0,0.003]
[1739101448184,0.23934212,96679.0,96678.0,0.003]
[1739101448377,0.24034212,96679.0,96677.0,0.3444285]
[1739101449986,0.23934212,96678.0,96677.0,0.3444285]
[1739101450686,0.23934212,96678.0,96677.0,0.3424285]
[1739101451388,0.24034212,96678.0,96677.0,0.3444285]
[1739101452976,0.23934212,96678.0,96677.0,0.3444285]
[1739101453177,0.23934212,96678.0,96658.0,0.76532]
[1739101453178,0.54034212,96678.0,96658.0,0.00064]
[1739101453377,0.3608,96659.0,96635.0,0.3608]
[1739101453579,0.3608,96651.0,96635.0,0.3608]
[1739101453780,0.00015514,96657.0,96636.0,0.0318]
[1739101453987,0.00015514,96657.0,96647.0,0.3608]
[1739101454188,0.00015514,96657.0,96648.0,0.1327]
[1739101454483,0.00015514,96657.0,96648.0,0.0641]
[1739101454688,0.001,96651.0,96648.0,0.0641]
[1739101454895,0.002,96651.0,96648.0,0.0641]
[1739101455390,0.001,96651.0,96648.0,0.0731]
[1739101456199,0.001,96651.0,96650.0,0.3608]
[1739101456200,0.002,96651.0,96650.0,0.3608]
[1739101456496,0.001,96651.0,96650.0,0.3608]
[1739101457082,0.00095469,96651.0,96650.0,0.3608]
[1739101457289,0.00195469,96651.0,96650.0,0.3608]
[1739101457490,0.001,96651.0,96650.0,0.14347338]
[1739101458686,0.002,96651.0,96650.0,0.14947338]
[1739101458988,0.05230044,96651.0,96650.0,0.14947338]
[1739101459591,0.05130044,96651.0,96650.0,0.14947338]
[1739101459787,0.05230044,96651.0,96650.0,0.14947338]
[1739101459997,0.05230044,96651.0,96650.0,0.006]
[1739101461086,0.05230044,96651.0,96643.0,0.01008323]
[1739101461087,0.05130044,96651.0,96643.0,0.01008323]
[1739101461287,0.05130044,96651.0,96650.0,0.005]
[1739101461696,0.05130044,96651.0,96644.0,0.06892]
[1739101461999,0.05130044,96651.0,96650.0,0.004]
[1739101462400,0.05030044,96651.0,96650.0,0.004]
[1739101462605,0.05130044,96651.0,96650.0,0.004]
[1739101463301,0.001,96651.0,96650.0,0.004]
[1739101463994,0.002,96651.0,96644.0,0.006]
[1739101464198,0.002,96651.0,96645.0,0.06896]
[1739101464401,0.002,96651.0,96644.0,0.006]
[1739101464591,0.001,96651.0,96642.0,0.07910629]
[1739101464800,0.001,96651.0,96650.0,0.003]
[1739101465194,0.001,96651.0,96644.0,0.005]
[1739101466099,0.001,96651.0,96649.0,0.3608]
[1739101466394,0.18499159,96655.0,96649.0,0.3608]
[1739101466604,0.001,96651.0,96649.0,0.3608]
[1739101467001,0.002,96651.0,96649.0,0.3608]
[1739101467498,0.001,96651.0,96649.0,0.3628]
[1739101468795,0.00015514,96657.0,96650.0,0.00163637]
[1739101468999,0.00015514,96657.0,96651.0,1.5]
[1739101469206,0.00015514,96657.0,96656.0,0.3608]
[1739101469409,0.13524673,96659.0,96656.0,0.36243637]
[1739101469801,0.13524673,96659.0,96657.0,1.5309]
[1739101470308,0.13524673,96659.0,96657.0,1.8309]
[1739101470508,0.21598295,96665.0,96657.0,1.8309]
[1739101470710,0.21598295,96665.0,96664.0,0.3608]
[1739101470897,0.21598295,96665.0,96664.0,0.42988]
[1739101471407,0.00015514,96668.0,96664.0,0.42988]
[1739101472302,0.004,96665.0,96664.0,0.42988]
[1739101473202,0.004,96665.0,96664.0,0.43151637]
[1739101473503,0.006,96665.0,96664.0,0.43151637]
[1739101473708,0.002,96665.0,96664.0,0.43151637]
[1739101474202,0.002,96665.0,96664.0,0.44131217]
[1739101474407,0.006,96665.0,96664.0,0.44131217]
[1739101474797,0.006,96665.0,96664.0,0.44147217]
[1739101476899,0.006,96665.0,96664.0,0.3705958]
[1739101477213,0.3668,96665.0,96643.0,0.3608]
[1739101477510,0.3608,96655.0,96643.0,0.3608]
[1739101477905,0.0306,96654.0,96643.0,0.3608]
[1739101478120,0.0306,96654.0,96646.0,0.06964]
[1739101478410,0.0306,96654.0,96647.0,0.00215514]
[1739101479602,0.0306,96654.0,96647.0,0.00315514]
[1739101480297,0.0306,96654.0,96647.0,0.00215514]
[1739101480511,0.0316,96654.0,96647.0,0.00315514]
[1739101480819,0.05030233,96653.0,96647.0,0.00315514]
[1739101482107,0.05030233,96653.0,96647.0,0.00215514]
[1739101482408,0.05030233,96653.0,96647.0,0.00315514]
[1739101482806,0.05030233,96653.0,96647.0,0.00115514]
[1739101483023,0.05130233,96653.0,96647.0,0.00315514]
[1739101483412,0.05130233,96653.0,96647.0,0.00115514]
[1739101483606,0.05130233,96653.0,96647.0,0.00215514]
[1739101486205,0.05030233,96652.0,96647.0,0.00215514]
[1739101487508,0.05030233,96652.0,96647.0,0.00115514]
[1739101487709,0.05030233,96652.0,96647.0,0.00215514]
[1739101488813,0.05130233,96652.0,96647.0,0.00215514]
[1739101489609,0.05130233,96652.0,96647.0,0.00115514]
[1739101489814,0.05130233,96652.0,96647.0,0.00215514]
[1739101490117,0.05130233,96652.0,96647.0,0.00115514]
[1739101490413,0.05130233,96652.0,96647.0,0.00215514]
[1739101490716,0.05030233,96651.0,96647.0,0.00215514]
[1739101491216,0.05030233,96651.0,96643.0,0.34647564]
[1739101491714,0.05030233,96651.0,96643.0,0.27727564]
[1739101492308,0.05130233,96651.0,96647.0,0.001]
[1739101493006,0.05130233,96651.0,96643.0,0.001]
[1739101493206,0.05130233,96651.0,96647.0,0.001]
[1739101493819,0.05130233,96651.0,96647.0,0.002]
[1739101495321,0.001,96651.0,96647.0,0.002]
[1739101497219,0.001,96651.0,96648.0,0.3608]
[1739101497521,0.001,96651.0,96649.0,0.0327]
[1739101498120,0.001,96651.0,96650.0,1.5]
[1739101498820,0.001,96651.0,96649.0,0.0327]
[1739101499321,0.001,96651.0,96650.0,1.5]
[1739101499520,0.18496545,96660.0,96650.0,1.5]
[1739101500820,0.18496545,96660.0,96659.0,0.3608]
[1739101501026,0.18496545,96660.0,96659.0,0.4302]
[1739101501923,0.05029725,96663.0,96659.0,0.4302]
[1739101502121,0.05029725,96663.0,96659.0,0.0694]
[1739101502317,0.001,96660.0,96659.0,0.0694]
[1739101502517,0.001,96660.0,96659.0,0.06944]
[1739101502723,0.004,96660.0,96659.0,0.06944]
[1739101503024,0.003,96660.0,96659.0,0.06944]
[1739101503217,0.05329725,96663.0,96659.0,0.06944]
[1739101503819,0.003,96660.0,96659.0,0.06944]
[1739101505015,0.003,96660.0,96651.0,0.06944]
[1739101505417,0.08129725,96662.0,96651.0,0.06944]
[1739101505827,0.05029725,96660.0,96651.0,0.06944]
[1739101506126,0.05029725,96660.0,96649.0,0.0427932]
[1739101506318,0.05129725,96660.0,96649.0,0.0427932]
[1739101506715,0.05429725,96660.0,96649.0,0.0427932]